bitfinex/quotes_ETHUSD_20250414
["timestamp","ask_amount","ask_price","bid_price","bid_amount"]
[1744643339340,6.02128,1660.8,1660.5,6.02216]
[1744643339669,6.02128,1660.8,1660.4,6.02264]
[1744643339835,12.04265,1660.8,1660.4,13.64785853]
[1744643340037,6.02128,1660.8,1660.5,6.0221]
[1744643340239,6.01941,1661.3,1660.6,0.06021613]
[1744643340467,6.98516,1661.2,1660.9,6.0206]
[1744643340674,6.0203,1661.1,1660.7,6.02129]
[1744643340977,6.98511,1661.2,1660.8,6.02107]
[1744643341277,6.02018,1661.1,1660.7,12.645189]
[1744643341448,6.02018,1661.1,1660.8,6.02108]
[1744643341651,13.00506,1661.2,1660.9,6.02081]
[1744643341848,6.02013,1661.1,1660.7,6.623659]
[1744643342041,6.02013,1661.1,1660.8,6.02103]
[1744643342236,6.02013,1661.1,1660.8,6.6833459]
[1744643342437,12.04053,1661.1,1660.8,0.6623159]
[1744643342757,12.04047,1661.1,1660.8,6.6834559]
[1744643343089,6.02075,1661.0,1660.4,1.60267853]
[1744643343380,6.98507,1661.2,1660.5,10.33865763]
[1744643343381,6.02034,1661.1,1660.5,10.33865763]
[1744643343587,6.02034,1661.1,1660.7,6.02137]
[1744643343887,12.04072,1661.1,1660.8,6.02106]
[1744643344086,0.9653,1661.2,1660.5,4.25642739]
[1744643344087,6.98511,1661.2,1660.5,4.25642739]
[1744643344238,6.02093,1660.9,1660.6,6.02179]
[1744643344444,6.02135,1660.8,1660.4,7.62518853]
[1744643344676,6.02095,1660.9,1660.5,12.04443]
[1744643344860,12.04209,1660.9,1660.5,12.04443]
[1744643345065,6.0201,1661.1,1660.6,6.02191]
[1744643345266,6.02141,1660.8,1660.4,7.62525853]
[1744643345487,6.02141,1660.8,1660.5,6.02223]
[1744643345841,0.9154,1660.8,1660.3,16.16414532]
[1744643346064,12.04333,1660.7,1660.4,6.02254]
[1744643346495,6.02096,1660.9,1660.5,6.02197]
[1744643346782,6.91213,1661.1,1660.7,6.0214]
[1744643346990,6.0206,1661.0,1660.6,6.02187]
[1744643347139,6.02153,1660.8,1660.4,6.02251]
[1744643347488,6.02153,1660.8,1660.5,6.02207]
[1744643347657,6.02138,1660.8,1660.5,6.02207]
[1744643348291,6.02087,1660.9,1660.5,6.02207]
[1744643348495,12.04283,1660.8,1660.4,6.02247]
[1744643348788,6.02133,1660.8,1660.4,6.02264]
[1744643348956,6.02133,1660.8,1660.4,12.04528]
[1744643349282,6.02133,1660.8,1660.5,6.02226]
[1744643349588,6.02096,1660.9,1660.5,6.02201]
[1744643349752,6.02057,1661.0,1660.6,6.02177]
[1744643349962,6.02101,1660.9,1660.6,6.02177]
[1744643350295,6.02101,1660.9,1660.6,6.02191]
[1744643350505,0.9629,1661.4,1660.8,4.25642739]
[1744643350654,6.01967,1661.3,1660.9,6.44643274]
[1744643350994,13.00124,1661.4,1661.0,0.06019435]
[1744643351208,0.9629,1661.6,1661.1,6.01995]
[1744643351399,6.01954,1661.3,1660.9,6.02067]
[1744643351548,10.27507739,1661.5,1660.8,6.16]
[1744643351750,12.03979,1661.2,1660.9,6.02073]
[1744643351973,6.01989,1661.2,1660.9,6.02073]
[1744643352186,0.9751,1660.8,1659.8,6.02482]
[1744643352497,6.02213,1660.6,1660.1,0.9674]
[1744643352704,12.04426,1660.6,1660.3,6.0228]
[1744643352862,6.02282,1660.4,1660.1,0.9674]
[1744643353059,6.02282,1660.4,1660.1,7.690205]
[1744643353602,6.02282,1660.4,1660.1,1.666525]
[1744643353769,12.04484,1660.5,1660.1,13.713645]
[1744643353966,6.02182,1660.7,1660.3,6.02295]
[1744643354185,6.02183,1660.7,1660.3,6.02292]
[1744643354603,6.02231,1660.5,1660.2,6.02329]
[1744643354775,6.02231,1660.5,1660.2,7.3946415]
[1744643354959,6.02231,1660.5,1660.2,7.3945615]
[1744643355160,6.02203,1660.6,1660.2,7.3945515]
[1744643355506,0.9751,1660.8,1660.2,7.3945515]
[1744643355510,6.99645,1660.8,1660.4,6.02241]
[1744643355689,6.02202,1660.6,1660.3,6.35964708]
[1744643355856,6.02155,1660.7,1660.3,0.33666708]
[1744643356056,6.02294,1660.4,1660.1,8.8494]
[1744643356262,6.02339,1660.2,1659.8,6.95196]
[1744643356503,0.55,1660.3,1659.5,0.9272]
[1744643356806,6.02485,1659.8,1659.5,6.95294]
[1744643357013,6.02539,1659.7,1659.3,6.02654]
[1744643357162,0.9344,1659.9,1659.3,6.02663]
[1744643357361,0.9344,1659.9,1659.5,4.25642739]
[1744643357588,6.02376,1660.1,1659.7,6.02483]
[1744643357827,0.9344,1660.2,1659.8,6.0248]
[1744643357828,6.95778,1660.2,1659.8,6.0248]
[1744643358011,6.02384,1660.1,1659.7,12.05028]
[1744643358223,12.98131,1660.2,1659.8,12.04932]
[1744643358400,6.95783,1660.2,1659.8,6.02458]
[1744643358605,6.98266,1660.5,1660.0,6.02377]
[1744643358819,12.04569,1660.4,1660.0,12.04773]
[1744643358998,6.02307,1660.3,1659.9,6.02431]
[1744643359324,0.9603,1660.5,1659.7,12.13942739]
[1744643359531,6.02367,1660.2,1659.8,7.23874274]
[1744643359688,6.02367,1660.2,1659.9,6.02442]
[1744643359889,6.02269,1660.4,1659.9,0.06023989]
[1744643360222,6.02269,1660.4,1660.0,12.04789]
[1744643360528,6.02329,1660.3,1659.9,6.02438]
[1744643360707,6.02329,1660.3,1659.9,12.04871]
[1744643360914,6.02504,1659.8,1659.4,12.05228]
[1744643361112,6.93704,1659.8,1659.4,6.02609]
[1744643361298,6.02532,1659.7,1659.3,6.02658]
[1744643361500,6.93711,1659.8,1659.3,10.28297739]
[1744643361712,0.912,1659.8,1659.3,6.02655]
[1744643361910,0.912,1659.8,1659.2,6.97941]
[1744643361911,7.630546,1659.8,1659.2,0.9525]
[1744643362129,6.02534,1659.7,1659.4,6.02627]
[1744643362328,12.05074,1659.7,1659.4,6.02627]
[1744643362628,6.02531,1659.7,1659.4,6.02611]
[1744643363201,12.05067,1659.7,1659.4,6.02611]
[1744643363518,12.05067,1659.7,1659.3,6.02652]
[1744643363814,6.02674,1659.3,1659.1,0.05]
[1744643364016,6.02613,1659.5,1659.1,6.07731]
[1744643364217,0.9596,1659.6,1659.2,6.02695]
[1744643364519,0.9596,1659.6,1659.2,6.02688]
[1744643364839,0.9596,1659.6,1659.4,6.02609]
[1744643364986,0.9596,1659.8,1659.2,0.06025979]
[1744643365334,6.02536,1659.7,1659.3,6.02639]
[1744643365637,6.02568,1659.6,1659.1,0.05]
[1744643365931,0.9596,1659.8,1659.1,7.06804304]
[1744643366103,12.05079,1659.7,1659.3,12.05289]
[1744643366299,0.9596,1659.8,1659.6,6.02531]
[1744643366507,6.02452,1659.9,1659.6,6.02531]
[1744643367027,14.86834,1660.1,1659.5,6.91781]
[1744643367195,0.9596,1660.1,1659.5,6.91781]
[1744643367391,6.02353,1660.2,1659.9,6.02424]
[1744643367591,6.02311,1660.3,1659.9,6.02411]
[1744643367829,6.02311,1660.3,1659.9,12.04827]
[1744643368188,10.01710278,1660.5,1660.0,0.9756]
[1744643368394,3.99477278,1660.3,1660.1,6.02359]
[1744643368940,3.99477278,1660.3,1660.1,6.02357]
[1744643369241,3.99477278,1660.3,1660.2,6.02337]
[1744643369733,3.99477278,1660.3,1660.2,13.79259778]
[1744643369940,9.87614939,1660.8,1660.7,6.02155]
[1744643370096,9.42536378,1660.8,1660.7,6.02155]
[1744643370285,3.78e-06,1660.8,1660.7,14.74166039]
[1744643370492,3.78e-06,1660.8,1660.7,16.75779204]
[1744643371192,6.01918,1661.4,1661.0,6.02028]
[1744643371386,6.01902,1661.4,1660.7,17.09311124]
[1744643371590,6.01902,1661.4,1661.1,6.02009]
[1744643371897,6.95968,1661.6,1661.2,6.01947]
[1744643372123,7.655648,1661.6,1661.2,12.03908]
[1744643372338,1.637168,1661.6,1661.2,6.01947]
[1744643372512,6.01743,1661.9,1661.2,6.01947]
[1744643372513,6.01804,1661.7,1661.3,6.96639]
[1744643372710,6.01842,1661.6,1661.2,6.01972]
[1744643372915,6.01757,1661.8,1661.1,6.0201]
[1744643373223,6.01857,1661.6,1661.1,6.01991]
[1744643373527,12.639497,1661.5,1661.1,6.01991]
[1744643373842,6.01948,1661.3,1660.9,6.0207]
[1744643373993,6.01934,1661.4,1661.0,6.02032]
[1744643374196,6.01923,1661.4,1661.0,6.02029]
[1744643374696,6.01923,1661.4,1661.0,12.04059]
[1744643375034,6.01923,1661.4,1661.0,6.02029]
[1744643375641,6.620527,1661.5,1661.1,6.0201]
[1744643375924,6.620527,1661.5,1661.2,6.01973]
[1744643376134,6.96854,1661.7,1661.2,0.0601939]
[1744643376339,0.9506,1661.7,1661.3,6.01938]
[1744643376544,6.01763,1661.8,1661.4,6.01877]
[1744643376696,6.90504,1661.9,1661.2,8.5943]
[1744643376697,0.8877,1661.9,1661.2,8.5943]
[1744643376896,6.01653,1662.1,1661.8,6.01757]
[1744643377126,6.715233,1662.1,1661.8,6.01757]
[1744643377448,6.01648,1662.1,1661.8,0.06017039]
[1744643377601,6.01673,1662.1,1661.6,6.01829]
[1744643377805,0.9705,1662.2,1661.4,10.5905443]
[1744643378149,12.03185,1662.3,1661.9,6.01706]
[1744643378349,6.01589,1662.3,1661.9,7.01856]
[1744643378649,0.05,1662.4,1662.1,12.03269]
[1744643378938,6.06574,1662.4,1662.0,6.01668]
[1744643379241,12.08135,1662.4,1662.0,6.01668]
[1744643379398,0.05,1662.4,1662.1,6.01633]
[1744643379594,0.05,1662.4,1662.1,6.01643]
[1744643379838,0.05,1662.4,1662.3,6.01576]
[1744643380130,0.05,1662.4,1662.1,0.601643]
[1744643380131,0.05,1662.4,1662.1,6.01634]
[1744643380505,0.05,1662.4,1662.1,12.03268]
[1744643380710,0.05,1662.4,1662.1,6.01634]
[1744643380913,6.06557,1662.4,1662.0,12.03347]
[1744643381113,7.273637,1662.4,1662.0,12.03347]
[1744643381325,6.06557,1662.4,1662.0,12.09363124]
[1744643381523,0.05,1662.4,1661.9,1.0015]
[1744643381843,0.05,1662.4,1662.2,6.01611]
[1744643382639,0.05,1662.4,1662.1,6.01642]
[1744643383025,0.05,1662.4,1662.1,12.03274]
[1744643383222,0.05,1662.4,1662.1,6.01632]
[1744643383424,6.06557,1662.4,1662.1,12.03263]
[1744643383626,0.05,1662.4,1662.2,12.03203]
[1744643383940,0.05,1662.4,1662.2,6.01598]
[1744643384460,0.05,1662.4,1662.2,6.01597]
[1744643384604,0.05,1662.4,1662.2,20.4548678]
[1744643384952,0.05,1662.4,1662.3,10.5875643]
[1744643385100,0.05,1662.4,1662.3,6.01576]
[1744643386399,0.05,1662.4,1662.3,13.23710375]
[1744643386600,0.05,1662.4,1662.3,13.17696]
[1744643386841,0.05,1662.4,1662.3,16.36371473]
[1744643387832,0.1850093,1662.4,1662.3,16.36371473]
[1744643388562,0.1850093,1662.4,1662.3,9.34675473]
[1744643388768,0.1850093,1662.4,1662.3,6.16]
[1744643388950,0.05,1662.4,1662.3,12.17576]
[1744643389168,0.17522675,1662.4,1662.3,12.17576]
[1744643389330,0.05,1662.4,1662.3,12.17576]
[1744643389535,0.17522675,1662.4,1662.3,8.605031]
[1744643389763,0.05,1662.4,1662.3,8.605031]
[1744643390361,0.17522675,1662.4,1662.3,9.515731]
[1744643390542,0.05,1662.4,1662.2,23.98464947]
[1744643390730,0.17522675,1662.4,1662.2,17.96865947]
[1744643391064,0.05,1662.4,1662.3,6.01576]
[1744643392269,0.05,1662.4,1662.3,6.07590696]
[1744643392425,0.05,1662.4,1662.3,6.01576]
[1744643392626,0.05,1662.4,1662.3,9.01579695]
[1744643394392,0.05,1662.4,1662.3,9.07594393]
[1744643394869,0.05,1662.4,1662.3,10.00789695]
[1744643397071,0.05,1662.4,1662.3,13.00789695]
[1744643398339,0.3976529,1663.0,1662.9,6.01359]
[1744643398542,0.3976529,1663.0,1662.9,6.614949]
[1744643398758,0.53891122,1663.0,1662.9,6.614949]
[1744643399289,1.22e-06,1663.0,1662.9,15.774949]
[1744643399503,0.05,1663.4,1663.3,6.01214]
[1744643400188,0.05,1663.4,1663.2,23.82139947]
[1744643400351,0.05,1663.4,1663.1,6.16]
[1744643400352,6.06214,1663.4,1663.1,6.16]
[1744643400557,6.92867,1663.3,1662.9,6.614809]
[1744643400866,6.01317,1663.1,1662.8,7.544]
[1744643401045,6.92858,1663.3,1662.8,7.544]
[1744643401046,6.01333,1663.0,1662.8,7.544]
[1744643401446,12.02674,1663.0,1662.8,7.544]
[1744643401640,6.01359,1662.9,1662.8,7.544]
[1744643401873,6.01333,1663.0,1662.8,7.544]
[1744643402079,6.01295,1663.1,1662.8,13.55793]
[1744643402381,6.92856,1663.3,1662.9,6.01358]
[1744643402580,12.94097,1663.3,1662.9,6.01359]
[1744643402887,6.92856,1663.3,1662.9,6.01348]
[1744643403088,6.92875,1663.3,1662.9,12.02704]
[1744643403269,0.9164,1663.3,1663.0,6.01318]
[1744643403462,6.92857,1663.3,1663.0,6.01318]
[1744643404182,0.9164,1663.3,1663.0,7.215762]
[1744643404384,0.05,1663.4,1663.1,4.25170947]
[1744643404687,0.05,1663.4,1663.2,6.0122]
[1744643405069,6.06195,1663.4,1663.0,7.215832]
[1744643405271,6.01254,1663.2,1662.8,15.515156]
[1744643405485,0.9104,1663.1,1662.8,15.515156]
[1744643405686,6.9233,1663.1,1662.8,15.515156]
[1744643405988,0.9104,1663.1,1662.8,15.515006]
[1744643406156,0.9104,1663.1,1662.8,21.528846]
[1744643406353,6.92329,1663.1,1662.8,7.544]
[1744643406557,12.93649,1663.1,1662.8,7.544]
[1744643406776,12.93636,1663.1,1662.8,7.544]
[1744643406982,6.01329,1663.0,1662.8,7.544]
[1744643407491,6.92342,1663.1,1662.8,7.544]
[1744643407672,0.9104,1663.1,1662.8,7.544]
[1744643407849,0.9104,1663.1,1662.8,13.55759]
[1744643408055,6.92337,1663.1,1662.8,7.544]
[1744643408291,6.01332,1663.0,1662.8,7.544]
[1744643408489,6.01453,1662.7,1662.3,9.01561695]
[1744643408649,12.98597,1662.7,1662.3,6.01558]
[1744643408855,6.01508,1662.5,1662.2,6.0161]
[1744643409057,6.015,1662.6,1662.3,6.01576]
[1744643409382,6.01481,1662.6,1662.3,6.01557]
[1744643409688,12.0297,1662.6,1662.2,12.03216]
[1744643409894,6.97116,1662.7,1662.3,6.01567]
[1744643410095,0.9568,1662.7,1662.4,6.01532]
[1744643410281,0.9568,1662.7,1662.4,6.01519]
[1744643410482,6.97123,1662.7,1662.4,6.01538]
[1744643410813,0.9568,1662.7,1662.1,13.55921]
[1744643410978,12.03058,1662.5,1662.2,0.33618511]
[1744643411175,6.01552,1662.4,1662.2,0.33618511]
[1744643411368,0.55,1662.6,1662.2,0.33618511]
[1744643411563,6.01478,1662.6,1662.2,6.01604]
[1744643411768,6.0153,1662.5,1662.1,13.55933]
[1744643411981,6.01629,1662.2,1661.9,6.01705]
[1744643412206,0.9116,1662.3,1661.8,4.85637841]
[1744643412207,6.92744,1662.3,1661.8,4.85637841]
[1744643412510,12.94122,1662.6,1662.3,6.0156]
[1744643412812,12.94135,1662.6,1662.2,12.03177]
[1744643412973,0.9116,1662.6,1662.2,10.87249841]
[1744643413312,6.01431,1662.7,1662.3,1.08724984]
[1744643413516,12.02968,1662.6,1662.2,12.03204]
[1744643413836,6.0151,1662.5,1662.2,6.016]
[1744643413979,6.0151,1662.5,1661.9,6.01713]
[1744643413980,0.9971,1662.5,1661.9,6.01706]
[1744643414179,6.01611,1662.3,1662.0,0.3363542]
[1744643414385,6.01561,1662.4,1662.0,6.3530842]
[1744643414698,7.01214,1662.5,1662.1,6.01644]
[1744643414897,0.9971,1662.5,1662.0,1.23702042]
[1744643415071,6.01637,1662.2,1661.8,9.9299]
[1744643415398,6.01637,1662.2,1661.8,6.0175]
[1744643415779,6.01653,1662.1,1661.8,6.0175]
[1744643415999,6.01697,1662.0,1661.7,7.543]
[1744643416174,6.618537,1662.0,1661.3,1.38404776]
[1744643416380,7.0236,1662.1,1661.5,4.85637841]
[1744643416697,6.01699,1662.0,1661.6,6.0182]
[1744643416902,12.03402,1662.0,1661.7,6.01786]
[1744643417098,1.0071,1662.1,1661.8,6.01746]
[1744643417305,1.0071,1662.1,1661.4,3.0]
[1744643417505,7.02377,1662.1,1661.7,6.01777]
[1744643417719,1.0071,1662.1,1661.9,6.0172]
[1744643417921,6.016,1662.3,1661.8,6.40585541]
[1744643418210,6.01665,1662.1,1661.8,6.619227]
[1744643418393,6.01774,1661.8,1661.4,9.01895]
[1744643418593,6.01804,1661.7,1661.4,9.01895]
[1744643418900,12.03466,1661.9,1661.5,6.01838]
[1744643419103,0.9476,1662.1,1661.4,15.03798]
[1744643419104,12.03551,1661.8,1661.4,15.03798]
[1744643419410,6.01704,1662.0,1661.6,6.0181]
[1744643419621,12.98076,1662.1,1661.7,6.01779]
[1744643419779,0.9476,1662.1,1661.8,6.01744]
[1744643419981,6.96422,1662.1,1661.8,6.01744]
[1744643420193,0.9476,1662.1,1661.9,6.01708]
[1744643420500,6.96419,1662.1,1661.8,6.01751]
[1744643420830,0.9476,1662.1,1661.8,6.01754]
[1744643421032,0.9302,1662.3,1661.9,6.0171]
[1744643421236,6.01625,1662.2,1661.9,6.0171]
[1744643421379,0.9302,1662.3,1662.0,6.6184]
[1744643421582,0.9302,1662.3,1662.1,6.01645]
[1744643421806,0.9302,1662.3,1662.0,6.61847]
[1744643422002,0.9302,1662.3,1662.0,12.63521]
[1744643422201,0.9302,1662.3,1662.1,6.01648]
[1744643422615,0.9302,1662.3,1662.0,6.61845]
[1744643422819,6.94596,1662.3,1662.0,6.61843]
[1744643423314,6.94596,1662.3,1662.0,0.60171]
[1744643423516,6.94596,1662.3,1661.9,6.01719]
[1744643423517,6.01685,1662.0,1661.8,7.546]
[1744643423706,12.03394,1662.0,1661.8,7.546]
[1744643423914,6.01733,1661.9,1661.7,1.14764584]
[1744643424084,6.01774,1661.8,1661.5,6.01859]
[1744643424285,0.9191,1661.9,1661.7,6.01767]
[1744643424485,6.93636,1661.9,1661.5,3.0]
[1744643424686,6.93636,1661.9,1661.5,6.01855]
[1744643424924,0.9191,1661.9,1661.5,2.057323]
[1744643425108,0.9825,1662.2,1661.5,6.97387928]
[1744643425314,13.01494,1662.2,1661.9,6.0172]
[1744643425515,6.99866,1662.2,1661.9,6.01706]
[1744643425825,6.99892,1662.2,1661.8,6.01754]
[1744643426028,6.01678,1662.1,1661.7,6.01777]
[1744643426191,0.9825,1662.2,1661.6,6.01824]
[1744643426390,0.9825,1662.2,1662.0,6.0167]
[1744643426622,12.03181,1662.3,1662.0,6.0167]
[1744643426787,6.01589,1662.3,1662.0,6.0167]
[1744643426990,12.03189,1662.3,1662.0,6.0167]
[1744643427186,6.93013,1662.4,1662.0,6.0167]
[1744643427435,0.9146,1662.4,1662.0,0.60768659]
[1744643427726,6.01504,1662.5,1662.1,6.01638]
[1744643428028,6.01602,1662.3,1662.0,0.60768659]
[1744643428328,0.9858,1662.7,1661.9,7.546]
[1744643428517,0.9858,1662.7,1662.1,6.01624]
[1744643428518,7.00025,1662.7,1662.1,6.01624]
[1744643428724,6.01539,1662.5,1662.1,6.01624]
[1744643428895,6.01472,1662.6,1662.3,6.01563]
[1744643429828,0.9858,1662.7,1662.4,6.0152]
[1744643429992,1.685783,1662.7,1662.1,0.9431]
[1744643430193,6.01576,1662.3,1662.0,12.17671]
[1744643430393,6.01576,1662.3,1662.0,6.01671]
[1744643430594,6.01576,1662.3,1662.0,12.03343]
[1744643430890,0.9858,1662.7,1661.9,19.35937841]
[1744643431096,0.9858,1662.7,1662.0,12.03355]
[1744643431097,6.01553,1662.4,1662.0,12.03355]
[1744643431299,6.01553,1662.4,1662.0,8.55431284]
[1744643431602,0.25286162,1662.3,1662.0,14.57101284]
[1744643431793,0.25286162,1662.3,1662.2,6.01612]
[1744643431999,6.01586,1662.3,1662.0,8.55439284]
[1744643432201,6.26872162,1662.3,1662.0,8.55432284]
[1744643432507,0.9096,1662.2,1661.7,0.601777]
[1744643432714,7.17841698,1662.2,1661.9,12.03424]
[1744643432903,1.16213698,1662.2,1661.7,6.619677]
[1744643433103,6.92584,1662.2,1661.8,6.01757]
[1744643433305,0.25221229,1662.1,1662.0,6.01677]
[1744643433506,0.25221229,1662.1,1661.8,10.87388841]
[1744643433740,6.01583,1662.3,1661.9,6.01719]
[1744643433931,4.0064,1662.4,1661.9,6.01709]
[1744643434239,6.01649,1662.1,1661.8,13.18246654]
[1744643434407,6.01649,1662.1,1661.8,7.16500654]
[1744643434911,6.01629,1662.2,1661.9,6.01714]
[1744643435117,12.0326,1662.2,1661.8,13.18245654]
[1744643435419,6.01668,1662.1,1661.8,13.18245654]
[1744643435727,0.25114624,1662.0,1661.8,7.16500654]
[1744643435904,0.25114624,1662.0,1661.8,12.03489]
[1744643436099,6.01636,1662.2,1661.9,6.01698]
[1744643436359,6.01613,1662.2,1661.9,6.01698]
[1744643436543,6.01613,1662.2,1661.8,6.01747]
[1744643436712,6.01649,1662.1,1661.8,12.03493]
[1744643437039,6.01649,1662.1,1661.8,7.2812307]
[1744643437427,12.03252,1662.2,1661.8,12.03512]
[1744643437638,6.0165,1662.1,1661.8,6.01756]
[1744643437839,6.01662,1662.1,1661.8,6.01746]
[1744643438040,6.01702,1662.0,1661.7,6.619697]
[1744643438240,12.03319,1662.1,1661.8,6.01752]
[1744643438448,10.02182,1662.4,1661.6,5.80377841]
[1744643438633,6.01784,1661.8,1661.7,0.3371661]
[1744643439544,6.9897,1662.0,1661.6,6.01811]
[1744643439750,6.01782,1661.8,1661.5,7.543]
[1744643439953,6.01797,1661.7,1661.5,9.47694484]
[1744643440327,12.03692,1661.6,1661.2,47.8394]
[1744643440527,6.01734,1661.9,1661.2,58.71526841]
[1744643440740,0.9727,1662.0,1661.4,10.87529841]
[1744643441057,0.9727,1662.0,1661.5,0.33727231]
[1744643441058,6.01829,1661.6,1661.5,0.33727231]
[1744643441644,12.0363,1661.7,1661.5,0.33727231]
[1744643441952,6.01829,1661.6,1661.5,0.33727231]
[1744643442115,6.01829,1661.6,1661.2,53.85902]
[1744643442318,6.01867,1661.5,1661.3,5.385902]
[1744643442523,6.01829,1661.6,1661.3,11.405222]
[1744643442759,0.20107709,1661.4,1661.3,5.385902]
[1744643442942,12.03679,1661.6,1661.3,5.385902]
[1744643443144,0.20107709,1661.4,1661.3,5.385902]
[1744643443349,6.01829,1661.6,1661.3,11.405122]
[1744643443519,0.20107709,1661.4,1661.3,11.74214654]
[1744643443726,6.01794,1661.7,1661.3,17.76136654]
[1744643443928,0.20107709,1661.4,1661.3,17.76136654]
[1744643444139,6.9151,1662.2,1661.6,0.8993]
[1744643444457,6.01627,1662.2,1661.9,6.01714]
[1744643444653,6.01627,1662.2,1661.9,6.07730552]
[1744643444863,12.03259,1662.2,1661.9,6.01714]
[1744643445246,12.03257,1662.2,1661.9,6.01714]
[1744643445438,6.01582,1662.3,1662.0,6.01674]
[1744643445635,0.8988,1662.4,1662.0,6.01671]
[1744643445839,0.8988,1662.4,1661.9,1.68910884]
[1744643446033,6.01663,1662.1,1661.8,6.46593686]
[1744643446338,8.4746,1662.7,1662.0,5.79447841]
[1744643446534,6.01505,1662.5,1662.2,12.03191]
[1744643446767,6.01505,1662.5,1662.2,6.01594]
[1744643446927,12.0303,1662.5,1662.2,6.01594]
[1744643447123,6.01482,1662.6,1662.2,0.60760965]
[1744643447424,6.01484,1662.6,1662.2,6.62362965]
[1744643447625,6.01535,1662.5,1662.1,13.56138]
[1744643447850,6.01494,1662.6,1662.1,19.57768]
[1744643448043,6.94498,1662.7,1662.3,6.01551]
[1744643448238,6.94498,1662.7,1662.4,6.01533]
[1744643448438,6.01476,1662.6,1662.3,6.01551]
[1744643448637,6.01476,1662.6,1662.2,6.01604]
[1744643448838,6.01518,1662.5,1662.2,6.01604]
[1744643449043,6.01467,1662.6,1662.2,13.989764]
[1744643449229,12.02954,1662.6,1662.2,7.973724]
[1744643449757,6.01509,1662.5,1662.2,7.973724]
[1744643449956,6.01509,1662.5,1662.2,7.973834]
[1744643450466,0.19169163,1662.4,1662.2,7.973834]
[1744643450660,0.19169163,1662.4,1662.2,1.957744]
[1744643450859,6.20735163,1662.4,1662.1,13.56129]
[1744643451261,6.97613,1662.3,1662.1,7.545]
[1744643451465,0.19104238,1662.2,1662.1,7.545]
[1744643451665,6.01549,1662.4,1662.1,13.56148]
[1744643451834,0.19439257,1662.3,1662.1,6.01648]
[1744643452037,6.01647,1662.2,1661.9,6.01711]
[1744643452233,0.17786253,1662.1,1662.0,12.03334]
[1744643452438,6.01576,1662.3,1661.9,6.618821]
[1744643452750,6.19376935,1662.2,1661.9,0.601711]
[1744643452952,6.01653,1662.1,1661.8,6.01742]
[1744643453134,12.21041467,1662.1,1661.8,6.01742]
[1744643453333,6.01653,1662.1,1661.8,6.01742]
[1744643453535,0.17689995,1662.0,1661.8,6.01742]
[1744643453837,0.17689995,1662.0,1661.8,6.01754]
[1744643454155,0.17689995,1662.0,1661.7,14.51036]
[1744643454363,6.19384995,1662.0,1661.7,3.002357]
[1744643454564,6.01776,1661.8,1661.6,7.543]
[1744643454764,0.894,1661.8,1661.6,7.543]
[1744643454942,0.1747559,1661.7,1661.6,7.543]
[1744643455331,6.1926859,1661.7,1661.6,7.543]
[1744643455766,0.1747559,1661.7,1661.6,7.543]
[1744643456071,0.1747559,1661.7,1661.5,6.01854]
[1744643456266,0.1747559,1661.7,1661.6,6.07847186]
[1744643456453,12.92054,1662.2,1661.8,6.01738]
[1744643456659,6.19252185,1662.1,1661.8,12.03481]
[1744643456848,6.19252185,1662.1,1661.7,13.56084]
[1744643457047,6.01696,1662.0,1661.7,13.56084]
[1744643457370,0.16131966,1661.9,1661.8,12.03486]
[1744643457671,0.16131966,1661.9,1661.7,21.632958]
[1744643457968,12.03323,1662.1,1661.8,6.01753]
[1744643458131,0.16099486,1661.8,1661.7,13.56089]
[1744643458332,12.03323,1662.1,1661.7,13.56089]
[1744643458333,6.01693,1662.0,1661.7,13.56089]
[1744643458546,0.16099486,1661.8,1661.7,13.56089]
[1744643458835,0.16099486,1661.8,1661.7,15.95177131]
[1744643459035,6.01693,1662.0,1661.7,15.95177131]
[1744643459263,0.16116014,1661.9,1661.7,15.95177131]
[1744643459636,0.16116014,1661.9,1661.7,15.615095]
[1744643460167,0.16116014,1661.9,1661.8,6.01757]
[1744643460368,6.90405,1662.2,1661.8,6.01757]
[1744643460369,6.94517,1662.6,1662.0,0.9782]
[1744643460573,6.01512,1662.5,1662.0,6.9949]
[1744643460869,6.16528748,1662.4,1662.1,6.01636]
[1744643461080,0.14984748,1662.4,1662.3,6.01576]
[1744643461237,6.01612,1662.2,1662.0,0.9782]
[1744643461442,6.01612,1662.2,1661.9,6.01715]
[1744643461774,0.13790836,1662.1,1662.0,12.03338]
[1744643462172,6.01527,1662.5,1662.1,6.01633]
[1744643462338,6.94515,1662.6,1662.3,6.01574]
[1744643462539,0.12655109,1662.4,1662.3,6.01576]
[1744643462755,52.95681,1663.4,1662.5,6.01503]
[1744643462756,0.968,1663.3,1662.5,6.01503]
[1744643463075,6.01306,1663.1,1662.7,10.87388763]
[1744643463249,0.968,1663.3,1662.6,6.97675]
[1744643463250,6.01376,1662.9,1662.6,0.9621]
[1744643463451,6.01286,1663.1,1662.4,0.9789]
[1744643463668,6.01566,1662.4,1662.1,7.538]
[1744643464186,6.01602,1662.3,1662.1,7.538]
[1744643464763,6.56576,1662.3,1661.7,7.538]
[1744643465093,6.01721,1661.9,1661.5,6.96954]
[1744643465293,0.985,1661.8,1661.0,0.9422]
[1744643465603,6.02046,1661.0,1660.9,6.44455751]
[1744643466608,7.00454,1661.3,1660.9,6.44455751]
[1744643466779,6.01981,1661.2,1660.9,6.44455751]
[1744643466974,6.02023,1661.1,1660.9,6.44455751]
[1744643467175,7.50176,1661.0,1660.9,6.44455751]
[1744643467380,7.50176,1661.0,1660.9,7.51e-06]